bitfinex-derivatives/quotes_BTCF0:USTF0_20210102
["timestamp","ask_amount","ask_price","bid_price","bid_amount"]
[1609594487944,7.0,30791.0,30790.0,0.00040354]
[1609594488544,7.18043158,30791.0,30790.0,0.00040354]
[1609594493752,2.18043158,30791.0,30790.0,0.00040354]
[1609594494154,2.74403158,30791.0,30790.0,0.00040354]
[1609594495356,2.74403158,30791.0,30789.0,1.0813]
[1609594495558,3.32514863,30791.0,30789.0,1.0813]
[1609594495757,6.0,30790.0,30789.0,1.0813]
[1609594495958,7.0,30790.0,30789.0,1.0813]
[1609594496257,7.0,30790.0,30789.0,1.08170364]
[1609594496861,7.58085789,30790.0,30789.0,1.08170364]
[1609594497159,7.58085789,30790.0,30789.0,0.62280364]
[1609594498362,1.3776,30789.0,30772.0,5.3061]
[1609594498560,0.18043158,30773.0,30772.0,5.3061]
[1609594498761,0.18043158,30773.0,30768.0,0.18043158]
[1609594498962,0.31117158,30773.0,30772.0,0.04014713]
[1609594499161,0.31117158,30773.0,30769.0,0.04014715]
[1609594499764,1.0,30770.0,30769.0,0.04014715]
[1609594503671,1.0,30770.0,30769.0,0.04014694]
[1609594506676,0.99801872,30770.0,30769.0,0.04014694]
[1609594506977,0.31117158,30773.0,30769.0,0.04014694]
[1609594508682,0.31117158,30773.0,30772.0,0.18043158]
[1609594508979,0.31117158,30773.0,30772.0,0.22057612]
[1609594510585,0.13074,30773.0,30772.0,0.22057612]
[1609594510783,0.18043158,30777.0,30772.0,0.22057612]
[1609594510983,1.18043158,30777.0,30772.0,0.22057612]
[1609594511384,1.18043158,30777.0,30773.0,0.04014343]
[1609594512487,1.0,30777.0,30773.0,0.04014343]
[1609594512686,1.0,30777.0,30776.0,0.18043158]
[1609594512888,1.0,30777.0,30776.0,0.22056845]
[1609594513087,1.0,30787.0,30776.0,0.22056845]
[1609594513488,1.0,30787.0,30777.0,0.0401347]
[1609594514189,1.0,30787.0,30777.0,0.0501347]
[1609594514589,1.0,30787.0,30786.0,0.18043158]
[1609594515190,1.0,30787.0,30786.0,0.22056468]
[1609594516592,1.18043158,30787.0,30786.0,0.22056468]
[1609594516996,0.18043158,30787.0,30786.0,0.22056468]
[1609594517794,0.17845109,30787.0,30786.0,0.22056468]
[1609594519297,0.17845109,30787.0,30786.0,0.30001737]
[1609594520396,0.29378109,30787.0,30786.0,0.11958579]
[1609594520597,0.29378109,30787.0,30786.0,0.30001737]
[1609594523199,1.29378109,30787.0,30786.0,0.30001737]
[1609594524002,0.11945,30795.0,30789.0,0.08381891]
[1609594524201,1.0,30798.0,30789.0,0.08381891]
[1609594524402,1.0,30797.0,30790.0,0.04013199]
[1609594524602,0.18043158,30791.0,30790.0,0.04013199]
[1609594524801,0.30924158,30791.0,30790.0,0.04013199]
[1609594525303,0.12881,30791.0,30790.0,0.04013199]
[1609594525502,0.12881,30791.0,30790.0,4.08513199]
[1609594526604,0.12881,30791.0,30790.0,4.26556357]
[1609594527303,0.11881,30791.0,30790.0,4.26556357]
[1609594527704,0.11881,30791.0,30790.0,0.22056357]
[1609594528804,0.10881,30791.0,30790.0,0.22056357]
[1609594529805,1.0,30801.0,30790.0,0.22056357]
[1609594530206,1.0,30801.0,30791.0,0.04011967]
[1609594530407,0.02955225,30803.0,30791.0,0.04011967]
[1609594531006,0.02955225,30803.0,30791.0,0.05011967]
[1609594531207,0.89010407,30804.0,30791.0,0.05011967]
[1609594531208,0.30664158,30804.0,30791.0,0.01]
[1609594531606,0.30664158,30804.0,30792.0,0.04011964]
[1609594532307,1.0,30803.0,30792.0,0.04011964]
[1609594532708,1.0,30803.0,30802.0,0.18043158]
[1609594533110,1.0,30803.0,30802.0,0.22055081]
[1609594534310,0.30664158,30804.0,30802.0,0.22055081]
[1609594534713,0.30664158,30804.0,30803.0,0.0401241]
[1609594540317,1.30664158,30804.0,30803.0,0.0401241]
[1609594542922,1.30664158,30804.0,30792.0,0.04011987]
[1609594543523,0.30664158,30804.0,30792.0,0.04011987]
[1609594544125,1.30664158,30804.0,30792.0,0.04011987]
[1609594544324,1.0,30793.0,30792.0,0.04011987]
[1609594544724,1.0,30793.0,30792.0,0.22055145]
[1609594544925,1.14744,30793.0,30792.0,0.22055145]
[1609594546325,0.14744,30793.0,30792.0,0.22055145]
[1609594550135,0.14832,30793.0,30792.0,0.22055145]
[1609594550334,0.14832,30793.0,30792.0,0.22014739]
[1609594550536,0.14832,30793.0,30792.0,0.18043158]
[1609594550734,0.14832,30793.0,30792.0,0.2205522]
[1609594554541,1.14832,30793.0,30792.0,0.04012062]
[1609594554740,5.80382,30793.0,30792.0,0.04012062]
[1609594555042,5.98425158,30793.0,30792.0,0.04012062]
[1609594555441,5.98425158,30793.0,30792.0,0.04013056]
[1609594555644,5.98425158,30793.0,30791.0,0.01]
[1609594555841,5.98425158,30793.0,30789.0,0.08381891]
[1609594556041,1.32875158,30793.0,30789.0,0.08381891]
[1609594556240,1.32875158,30793.0,30790.0,0.04013639]
[1609594556440,1.32875158,30793.0,30789.0,0.08381891]
[1609594556441,1.32875158,30793.0,30789.0,0.00761891]
[1609594556640,3.6533,30790.0,30770.0,3.6708]
[1609594556841,0.18043158,30778.0,30768.0,2.51517528]
[1609594557041,6.28171158,30778.0,30768.0,2.51517528]
[1609594557242,6.28171158,30778.0,30777.0,1.98489114]
[1609594558344,7.28171158,30778.0,30777.0,1.98489114]
[1609594558744,7.28171158,30778.0,30777.0,0.05014093]
[1609594559145,7.28171158,30778.0,30777.0,0.01040328]
[1609594560350,6.28171158,30778.0,30763.0,0.39631976]
[1609594560746,6.28171158,30778.0,30773.0,0.0004034]
[1609594560947,0.18043158,30774.0,30773.0,0.0004034]
[1609594561148,1.89243158,30774.0,30773.0,0.0004034]
[1609594561848,1.89243158,30774.0,30773.0,0.00040344]
[1609594562048,1.89243158,30774.0,30773.0,0.00040346]
[1609594562248,1.18043158,30774.0,30773.0,0.00040346]
[1609594563554,1.89663158,30774.0,30773.0,0.00040346]
[1609594566054,1.18043158,30774.0,30773.0,0.00040346]
[1609594568774,0.18043158,30774.0,30773.0,0.00040346]
[1609594568958,1.18043158,30774.0,30773.0,0.00040346]
[1609594569158,0.18043158,30774.0,30773.0,0.00040346]
[1609594572464,1.18043158,30774.0,30773.0,0.00040346]
[1609594573465,1.0,30774.0,30773.0,0.00040346]
[1609594574066,0.03,30773.0,30770.0,4.15543158]
[1609594574464,0.03,30773.0,30772.0,0.03040376]
[1609594575665,0.03,30773.0,30772.0,0.07013818]
[1609594576366,0.03,30773.0,30772.0,1.07013818]
[1609594576566,0.00998542,30784.0,30772.0,1.07013818]
[1609594576967,0.00998542,30784.0,30783.0,0.18043158]
[1609594577368,1.0,30789.0,30783.0,0.18043158]
[1609594577568,1.0,30789.0,30783.0,0.18083529]
[1609594577767,1.0,30789.0,30784.0,0.00040369]
[1609594578369,0.18043158,30792.0,30784.0,0.00040369]
[1609594578873,0.18043158,30792.0,30791.0,0.18043158]
[1609594579571,0.18043158,30792.0,30791.0,0.18083524]
[1609594581776,0.2949,30800.0,30791.0,0.18083524]
[1609594582275,0.2949,30800.0,30792.0,0.00040362]
[1609594582975,0.2949,30800.0,30798.0,0.18043158]
[1609594583377,0.2949,30800.0,30799.0,0.00040362]
[1609594584478,1.2949,30800.0,30799.0,0.00040362]
[1609594584678,1.2949,30800.0,30787.0,0.04012838]
[1609594584878,1.2949,30800.0,30799.0,0.00040493]
[1609594585078,2.2949,30800.0,30799.0,0.00040493]
[1609594585278,2.2949,30800.0,30793.0,0.18043158]
[1609594585478,2.2949,30800.0,30799.0,0.00040495]
[1609594585679,2.2949,30800.0,30794.0,0.00040495]
[1609594586379,1.0,30795.0,30794.0,0.00040495]
[1609594586580,1.15735,30795.0,30794.0,0.00040495]
[1609594587581,2.15735,30795.0,30794.0,0.00040495]
[1609594587782,2.15735,30795.0,30779.0,0.0401323]
[1609594588183,2.15735,30795.0,30794.0,0.00040497]
[1609594588383,1.0,30786.0,30780.0,0.00040497]
[1609594588582,1.12358,30786.0,30779.0,0.03972733]
[1609594588983,1.12358,30786.0,30785.0,0.18043158]
[1609594589385,1.12358,30786.0,30785.0,0.18083655]
[1609594590284,0.12358,30786.0,30785.0,0.18083655]
[1609594592087,0.12358,30786.0,30785.0,4.71723655]
[1609594592287,0.12358,30786.0,30785.0,4.75696152]
[1609594592486,0.12358,30786.0,30785.0,5.75696152]
[1609594593386,0.12358,30786.0,30785.0,1.22056152]
[1609594593595,0.12358,30786.0,30785.0,1.22056147]
[1609594593987,0.18043158,30796.0,30785.0,1.22056147]
[1609594594187,0.18043158,30796.0,30786.0,0.04012736]
[1609594594987,0.18043158,30796.0,30795.0,0.18043158]
[1609594595587,0.18043158,30796.0,30795.0,0.1808365]
[1609594598290,1.0,30801.0,30795.0,0.1808365]
[1609594598490,1.0,30810.0,30795.0,6.1913365]
[1609594598691,1.0,30810.0,30796.0,0.00040483]
[1609594598891,0.12621,30804.0,30796.0,0.04011418]
[1609594599090,0.00998287,30805.0,30803.0,0.18043158]
[1609594599490,0.18043158,30813.0,30804.0,0.0401089]
[1609594599690,0.00998375,30816.0,30804.0,0.8108089]
[1609594600290,0.00998375,30816.0,30806.0,1.0]
[1609594600691,0.00998324,30820.0,30806.0,1.0]
[1609594600890,0.00998324,30820.0,30807.0,0.04010548]
[1609594601092,0.00998324,30820.0,30819.0,0.18043158]
[1609594601491,0.00998324,30820.0,30819.0,4.00283628]
[1609594601893,1.0,30822.0,30819.0,4.00283628]
[1609594602292,0.18043158,30824.0,30819.0,4.00283628]
[1609594602494,0.02975334,30826.0,30820.0,0.0004047]
[1609594602894,0.02973637,30829.0,30820.0,0.0004047]
[1609594603094,0.02973637,30829.0,30828.0,0.18043158]
[1609594603494,0.02973637,30829.0,30828.0,0.18083625]
[1609594604095,0.18043158,30830.0,30828.0,0.18083625]
[1609594604495,0.18043158,30830.0,30829.0,0.0004046]
[1609594605496,1.18043158,30830.0,30829.0,0.0004046]
[1609594605696,1.18043158,30830.0,30813.0,3.8597]
[1609594605896,1.18043158,30830.0,30829.0,0.00040466]
[1609594606097,1.29693158,30830.0,30814.0,0.00040468]
[1609594606497,1.29693158,30830.0,30829.0,0.00040468]
[1609594606697,0.29693158,30830.0,30815.0,0.00040468]
[1609594606997,0.1165,30830.0,30829.0,0.0004047]
[1609594607197,0.1165,30830.0,30819.0,0.18043158]
[1609594607402,0.02969386,30827.0,30819.0,0.18043158]
[1609594607798,0.02969386,30827.0,30820.0,0.00040471]
[1609594607999,0.00996307,30827.0,30820.0,0.00040471]
[1609594608198,1.00996307,30827.0,30820.0,0.00040471]
[1609594608399,1.0,30821.0,30820.0,0.00040471]
[1609594608600,1.14749,30821.0,30814.0,0.00040471]
[1609594608801,1.14749,30821.0,30820.0,0.00040471]
[1609594609000,1.32792158,30821.0,30815.0,0.00040471]
[1609594609400,1.32792158,30821.0,30820.0,0.00040471]
[1609594609600,1.32792158,30821.0,30816.0,0.00040473]
[1609594609901,1.32792158,30821.0,30820.0,0.00040473]
[1609594610102,1.32792158,30821.0,30817.0,0.00040473]
[1609594610301,0.32792158,30821.0,30817.0,0.00040473]
[1609594610501,1.32792158,30821.0,30820.0,0.00040473]
[1609594610701,1.32792158,30821.0,30815.0,0.00040473]
[1609594610901,2.09852158,30821.0,30820.0,0.00040473]
[1609594611102,3.09852158,30821.0,30820.0,0.00040473]
[1609594611301,3.09852158,30821.0,30816.0,0.00040475]
[1609594611501,2.32792158,30821.0,30806.0,0.04011149]
[1609594611701,1.32792158,30821.0,30817.0,0.00040477]
[1609594612001,1.32792158,30821.0,30807.0,0.04011135]
[1609594612409,1.0,30820.0,30807.0,0.04011135]
[1609594612606,1.0,30820.0,30807.0,0.03970658]
[1609594613303,1.0,30820.0,30819.0,0.18043158]
[1609594613902,1.0,30820.0,30819.0,0.18083627]
[1609594617006,1.0,30820.0,30819.0,0.22053282]
[1609594618609,1.0,30820.0,30819.0,0.18083627]
[1609594618910,1.0,30820.0,30819.0,0.22053475]
[1609594622316,0.32792158,30821.0,30819.0,0.22053475]
[1609594622918,0.32792158,30821.0,30820.0,0.04010097]
[1609594623319,0.14749,30821.0,30820.0,0.04010097]
[1609594623517,0.00992981,30828.0,30820.0,0.04010097]
[1609594623720,2.32651651,30830.0,30820.0,0.04010097]
[1609594624318,2.14608493,30830.0,30820.0,0.04010097]
[1609594624518,2.14608493,30830.0,30820.0,0.11948086]
[1609594625220,2.1165,30830.0,30820.0,0.11948086]
[1609594625519,2.1165,30830.0,30829.0,0.18043158]
[1609594626119,2.1165,30830.0,30829.0,0.22052372]
[1609594629522,2.1165,30830.0,30829.0,0.04009214]
[1609594630123,2.29693158,30830.0,30829.0,0.18043158]
[1609594630323,3.29693158,30830.0,30829.0,0.22052481]
[1609594630722,3.1165,30830.0,30829.0,0.22052481]
[1609594632431,2.1165,30830.0,30829.0,0.22052481]
[1609594634124,2.1165,30830.0,30829.0,0.25052481]
[1609594634524,2.1165,30830.0,30829.0,0.85392481]
[1609594635726,0.1174,30830.0,30829.0,0.85392481]
[1609594635928,0.26173,30830.0,30829.0,0.85392481]
[1609594636327,0.26173,30830.0,30829.0,1.85392481]
[1609594636727,0.26173,30830.0,30829.0,1.93327398]
[1609594636928,0.1174,30830.0,30829.0,1.93327398]
[1609594637729,0.1174,30830.0,30829.0,0.93327398]
[1609594638130,0.1174,30830.0,30829.0,1.7528424]
[1609594638331,0.11542243,30830.0,30829.0,1.67349323]
[1609594638534,0.16342,30837.0,30829.0,1.75283967]
[1609594638733,0.3,30840.0,30836.0,0.18043158]
[1609594638932,0.3,30840.0,30836.0,1.22010167]
[1609594639133,0.3,30840.0,30836.0,1.22050559]
[1609594639332,0.3,30840.0,30837.0,0.04007298]
[1609594639532,0.3,30840.0,30837.0,0.11940973]
[1609594640135,0.3,30840.0,30837.0,0.04007298]
[1609594640334,0.3,30840.0,30838.0,0.04007202]
[1609594640534,0.3,30840.0,30838.0,5.32577202]
[1609594640934,0.3,30840.0,30839.0,0.0400715]
[1609594645440,0.3,30840.0,30839.0,1.0400715]
[1609594645638,0.3,30840.0,30839.0,1.1193957]
[1609594646240,0.00990613,30877.0,30851.0,5.2554]
[1609594646438,0.00990613,30877.0,30851.0,6.2554]
[1609594646639,0.00990613,30877.0,30851.0,6.39205]
[1609594646839,0.00990613,30877.0,30876.0,0.18043158]
[1609594647240,0.00990613,30877.0,30876.0,0.18083638]
[1609594647439,0.98425074,30880.0,30876.0,0.18083638]
[1609594647440,0.00990533,30879.0,30876.0,0.18083638]
[1609594647839,0.00990533,30879.0,30877.0,0.0004048]
[1609594648041,0.18043158,30882.0,30877.0,0.0004048]
[1609594648239,4.2201,30879.0,30854.0,0.04005698]
[1609594648441,1.0,30878.0,30854.0,0.04005698]
[1609594648639,1.11061,30878.0,30870.0,0.18043158]
[1609594648842,0.2852,30877.0,30870.0,0.18043158]
[1609594649439,0.2852,30877.0,30871.0,0.00040484]
[1609594650740,0.2852,30877.0,30874.0,0.18043158]
[1609594651142,0.2852,30877.0,30875.0,0.00040481]
[1609594652845,0.18043158,30876.0,30875.0,0.00040481]
[1609594654149,0.2852,30877.0,30875.0,0.00040481]
[1609594655748,0.11061,30878.0,30875.0,0.00040481]
[1609594655949,0.009899,30887.0,30875.0,0.00040481]
[1609594656549,0.009899,30887.0,30876.0,0.03]
[1609594656751,0.009899,30887.0,30886.0,0.18043158]
[1609594657149,0.77242292,30888.0,30886.0,0.18043158]
[1609594657651,0.18043158,30888.0,30886.0,0.18043158]
[1609594659453,0.18043158,30888.0,30887.0,0.0004047]
[1609594662259,0.58087759,30900.0,30887.0,0.0004047]
[1609594662659,0.58087759,30900.0,30893.0,5.4103]
[1609594662858,0.58087759,30900.0,30899.0,0.18043158]
[1609594663060,0.58067413,30901.0,30899.0,0.18043158]
[1609594663461,0.58067413,30901.0,30900.0,0.00040455]
[1609594664062,0.58058337,30912.0,30900.0,3.94780455]
[1609594664262,0.58058337,30912.0,30901.0,1.0]
[1609594664462,0.58058337,30912.0,30907.0,4.7327]
[1609594664662,0.58058337,30912.0,30902.0,0.00040448]
[1609594664863,0.16815,30912.0,30911.0,0.18043158]
[1609594665265,0.16815,30912.0,30911.0,0.18083604]
[1609594666365,0.16815,30912.0,30911.0,1.00040446]
[1609594666770,0.16815,30912.0,30911.0,2.00040446]
[1609594666964,0.16815,30912.0,30911.0,2.18083604]
[1609594667165,0.16815,30912.0,30911.0,7.49313604]
[1609594667874,0.16815,30912.0,30911.0,6.49313604]
[1609594668073,0.0002,30929.0,30911.0,7.49313604]
[1609594668278,0.0002,30929.0,30911.0,2.18083604]
[1609594668467,0.0002,30929.0,30912.0,0.00040434]
[1609594668872,0.0002,30929.0,30928.0,0.18043158]
[1609594669068,0.0002,30929.0,30928.0,1.18043158]
[1609594669467,0.04161785,30930.0,30928.0,1.18083577]
[1609594669869,0.04161785,30930.0,30929.0,1.00040417]
[1609594670067,0.04161785,30930.0,30929.0,2.00040417]
[1609594670469,0.04161785,30930.0,30929.0,1.00040417]
[1609594671369,0.0958,30937.0,30929.0,1.00040417]
[1609594671569,0.0958,30937.0,30929.0,2.00040417]
[1609594671771,0.0958,30937.0,30929.0,1.00040417]
[1609594672070,0.0958,30937.0,30930.0,0.00040412]
[1609594672471,0.2791,31002.0,30930.0,0.00040412]
[1609594672870,0.2791,31002.0,30930.0,1.00040412]
[1609594673071,1.02475035,30966.0,30961.0,0.18043158]
[1609594673671,0.67323293,30962.0,30961.0,0.18043158]
[1609594673873,0.0975,30962.0,30961.0,0.18043158]
[1609594674872,0.04161785,30974.0,30961.0,0.18043158]
[1609594675072,0.04161785,30974.0,30950.0,1.0]
[1609594675073,0.04161785,30974.0,30973.0,0.18043158]
[1609594675273,0.04161785,30974.0,30955.0,3.7964]
[1609594675472,0.04161785,30974.0,30973.0,1.0]
[1609594675673,0.2776,31029.0,30973.0,1.0]
[1609594675873,0.0956,30996.0,30977.0,5.2197]
[1609594676274,0.56955812,30997.0,30977.0,5.2197]
[1609594676473,0.56955812,30997.0,30977.0,4.59095]
[1609594676674,0.56955812,30997.0,30977.0,1.0]
[1609594676981,0.18043158,30997.0,30996.0,0.18043158]
[1609594677374,0.18043158,30997.0,30931.0,1.16541]
[1609594677575,0.15185,30997.0,30932.0,1.0]
[1609594677776,0.56855436,31003.0,30932.0,1.0]
[1609594677975,0.16956,30997.0,30933.0,0.03955226]
[1609594678175,0.16956,30997.0,30972.0,1.0]
[1609594678375,0.66465436,31003.0,30972.0,1.0]
[1609594678376,0.56855436,31003.0,30973.0,1.0]
[1609594678776,0.56855436,31003.0,30917.0,0.15783]
[1609594678978,0.56855436,31003.0,30999.0,0.18043158]
[1609594679176,0.22069,31000.0,30999.0,0.18043158]
[1609594679376,0.56855436,31003.0,30999.0,1.0]
[1609594679578,0.56855436,31003.0,30999.0,0.2504]
[1609594679776,0.0968,31002.0,30999.0,6.2504]
[1609594679977,0.22455,31002.0,30999.0,6.2504]
[1609594680777,0.12775,31002.0,31000.0,0.2504]
[1609594680978,0.56855436,31003.0,31000.0,0.39022329]
[1609594681177,0.56855436,31003.0,31001.0,0.00040334]
[1609594681377,0.89283733,31011.0,31001.0,0.00040334]
[1609594681577,0.18043158,31013.0,31010.0,0.18043158]
[1609594681779,0.10665,31013.0,31001.0,0.00040334]
[1609594682577,0.10665,31013.0,30989.0,0.00040341]
[1609594682778,1.03597875,31015.0,30989.0,0.00040341]
[1609594683079,1.03597875,31015.0,30989.0,0.13741341]
[1609594683581,0.14381,31021.0,31014.0,0.18043158]
[1609594683781,0.0958,31020.0,30990.0,2.00040337]
[1609594684180,0.14381,31021.0,30991.0,0.00040339]
[1609594684579,0.14381,31021.0,30991.0,0.00040336]
[1609594684783,11.921,35455.0,30991.0,0.00040336]
[1609594684784,3.06901,31073.0,30997.0,4.0188]
[1609594685182,0.0953,31072.0,31001.0,3.8527]
[1609594685381,0.20357,31072.0,31001.0,3.8527]
[1609594685782,1.0,31031.0,31015.0,1.0]
[1609594686281,1.14879,31031.0,31015.0,1.0]
[1609594686683,1.14879,31031.0,31030.0,0.00196877]
[1609594686882,1.24569,31031.0,31015.0,1.0]
[1609594687484,1.14879,31031.0,31015.0,0.8308]
[1609594687683,0.18043158,31016.0,30986.0,4.3144]
[1609594688083,0.31986158,31016.0,30990.0,0.00040353]
[1609594688584,0.31986158,31016.0,30987.0,0.00040355]
[1609594688985,0.13943,31016.0,30986.0,4.3144]
[1609594689985,0.13943,31016.0,30987.0,0.00040355]
[1609594690185,0.13943,31016.0,30986.0,4.3144]
[1609594691586,0.13943,31016.0,30991.0,0.18043158]
[1609594691787,1.0,31014.0,30998.0,1.0]
[1609594692891,0.0973,31013.0,30986.0,3.3144]
[1609594693090,0.0973,31013.0,30983.0,5.0]
[1609594693291,0.0973,31013.0,30959.0,0.10534]
[1609594693492,0.13943,31016.0,30984.0,0.00040352]
[1609594693692,1.0,31029.0,31007.0,0.18043158]
[1609594695294,0.2917,31044.0,31007.0,0.18043158]
[1609594695693,0.2917,31044.0,31030.0,0.18043158]
[1609594697594,0.2917,31044.0,31043.0,0.18043158]
[1609594698797,0.2917,31044.0,31043.0,0.17283158]
[1609594698998,0.2917,31044.0,30991.0,0.15824]
[1609594699198,0.40558,31044.0,30984.0,0.1234]
[1609594699397,0.40558,31044.0,30961.0,0.07897425]
[1609594699599,0.40558,31044.0,31033.0,0.18043158]
[1609594699798,0.40558,31044.0,30969.0,1.64458294]
[1609594700198,0.40558,31044.0,30970.0,0.03990233]
[1609594700998,0.40558,31044.0,30963.0,0.03990658]
[1609594701200,0.40558,31044.0,30971.0,0.03990686]
[1609594701501,1.15777,31037.0,30971.0,0.03990686]
[1609594701701,1.15777,31037.0,31033.0,0.18043158]
[1609594701903,1.15777,31037.0,30999.0,0.15729]
[1609594702304,1.15777,31037.0,31000.0,0.00040335]
[1609594702904,1.15777,31037.0,31000.0,0.03990224]
[1609594703203,0.15777,31037.0,31000.0,0.03990224]
[1609594703603,0.15777,31037.0,31025.0,0.18043158]
[1609594704215,0.15777,31037.0,31026.0,0.00041452]
[1609594705003,0.15777,31037.0,31013.0,0.13728]
[1609594705004,0.15777,31037.0,31004.0,3.42371158]
[1609594705408,0.15777,31037.0,31005.0,0.0399109]
[1609594705606,0.15777,31037.0,31027.0,0.18043158]
[1609594705807,0.15777,31037.0,31005.0,0.0399109]
[1609594706409,0.15580227,31037.0,31005.0,0.0399109]
[1609594706607,0.40558,31044.0,31005.0,0.00041447]
[1609594706808,0.40558,31044.0,31006.0,0.03991322]
[1609594707008,0.40558,31044.0,31005.0,0.03991352]
[1609594707411,1.0,31039.0,31007.0,0.00041451]
[1609594707608,0.0955,31038.0,31007.0,0.00041451]
[1609594707808,0.18043158,31012.0,31011.0,0.18043158]
[1609594708009,0.18043158,31012.0,31005.0,0.00041453]
[1609594708209,0.18043158,31012.0,31011.0,0.00041456]
[1609594708609,0.18043158,31012.0,31004.0,3.42371158]
[1609594708610,0.18043158,31012.0,31005.0,0.00041462]
[1609594709810,0.18043158,31006.0,31005.0,0.00041462]
[1609594710211,0.30817158,31006.0,31005.0,0.00041462]
[1609594712215,0.12774,31006.0,31005.0,0.00041462]
[1609594713516,0.15007,31018.0,31005.0,0.00041462]
[1609594713718,0.40558,31044.0,31017.0,0.18043158]
[1609594714217,0.40558,31044.0,31018.0,0.00041456]
[1609594715723,0.18043158,31027.0,31022.0,0.18043158]
[1609594716021,0.28709158,31027.0,31022.0,0.18043158]
[1609594716221,0.28709158,31027.0,31023.0,0.00041449]
[1609594717022,0.28709158,31027.0,31004.0,1.60443158]
[1609594717425,0.28709158,31027.0,31005.0,0.03950146]
[1609594717623,0.0979,31026.0,31005.0,0.03991598]
[1609594717825,0.10666,31027.0,31017.0,0.18043158]
[1609594718024,0.10666,31027.0,31018.0,0.00041452]
[1609594718524,0.10666,31027.0,31018.0,0.03991517]
[1609594719628,0.10469272,31027.0,31018.0,0.03991517]
[1609594719827,0.10469272,31027.0,31026.0,0.18043158]
[1609594720028,0.18043158,31031.0,31026.0,0.18043158]
[1609594720228,0.18043158,31031.0,31026.0,0.22033445]
[1609594720428,0.18043158,31031.0,31027.0,0.03990129]
[1609594720629,0.11388,31044.0,31027.0,0.03990129]
[1609594720830,0.2883,31071.0,31027.0,0.03990129]
[1609594722230,0.2883,31071.0,31005.0,0.11887972]
[1609594722631,0.10827,31072.0,31028.0,0.03989614]
[1609594722832,0.10827,31072.0,31006.0,0.03989399]
[1609594723032,0.56351909,31084.0,31006.0,0.03989399]
[1609594723233,0.56351909,31084.0,31029.0,0.03989175]
[1609594723433,0.72087909,31084.0,31007.0,0.03989068]
[1609594723633,0.15736,31084.0,31005.0,0.11887454]
[1609594723832,0.15736,31084.0,31069.0,0.18043158]
[1609594724233,0.15736,31084.0,31006.0,0.03988803]
[1609594724435,0.15736,31084.0,31005.0,0.07898382]
[1609594724436,0.15736,31084.0,31070.0,0.00041422]
[1609594725034,0.15736,31084.0,31008.0,0.11881291]
[1609594725233,0.15736,31084.0,31071.0,0.00041412]
[1609594725435,0.15736,31084.0,31012.0,1.69221975]
[1609594725834,0.15736,31084.0,31083.0,0.18043158]
[1609594726434,0.15736,31084.0,31043.0,0.14687]
[1609594726636,0.097,31083.0,31043.0,0.14687]
[1609594726836,0.097,31083.0,31044.0,0.03944846]
[1609594727035,0.15736,31084.0,31044.0,0.03986244]
[1609594727235,0.15736,31084.0,31044.0,0.0402764]
[1609594727435,0.15736,31084.0,31044.0,0.03986242]
[1609594727736,0.15736,31084.0,31083.0,0.18043158]
[1609594727936,0.18043158,31094.0,31083.0,0.18043158]
[1609594728137,0.18043158,31094.0,31084.0,0.00041396]
[1609594728336,0.0964,31099.0,31084.0,0.00041396]
[1609594728539,0.2775,31106.0,31084.0,0.00041396]
[1609594728738,0.56995199,31125.0,31084.0,0.604]
[1609594728939,0.41246404,31135.0,31084.0,0.604]
[1609594729140,0.0974,31134.0,31084.0,0.604]
[1609594729339,0.26103,31134.0,31085.0,0.00041394]
[1609594729542,0.16363,31134.0,31085.0,0.00041394]
[1609594729740,0.18043158,31101.0,31095.0,0.18043158]
[1609594730140,0.30705158,31101.0,31095.0,0.18043158]
[1609594730543,0.12662,31101.0,31095.0,0.18043158]
[1609594731142,0.02302,31101.0,31095.0,0.18043158]
[1609594731742,0.02302,31101.0,31100.0,0.18043158]
[1609594732345,0.16363,31134.0,31100.0,0.18043158]
[1609594732543,0.16363,31134.0,31100.0,0.18084524]
[1609594733044,0.16363,31134.0,31101.0,0.00041366]
[1609594733448,0.0968,31133.0,31101.0,0.00041366]
[1609594733746,0.16363,31134.0,31101.0,0.00041366]
[1609594733945,0.12023,31134.0,31132.0,0.18043158]
[1609594734545,0.18043158,31139.0,31132.0,0.18043158]
[1609594734947,0.0956,31143.0,31132.0,0.18043158]
[1609594735147,0.04161785,31154.0,31132.0,0.18043158]
[1609594735848,0.04161785,31154.0,31153.0,0.18043158]
[1609594736049,0.04161785,31154.0,31116.0,0.15957]
[1609594736448,0.16028785,31154.0,31117.0,0.00041353]
[1609594737748,0.15832592,31154.0,31117.0,0.00041353]
[1609594737947,0.18043158,31149.0,31117.0,0.00041353]
[1609594738348,0.15832592,31154.0,31116.0,0.15957]
[1609594739949,0.30850158,31125.0,31098.0,1.63416376]
[1609594740550,0.30850158,31125.0,31084.0,2.23802997]
[1609594740749,0.2757,31153.0,31135.0,1.69149842]
[1609594740950,0.2757,31153.0,31084.0,0.92952839]
[1609594741151,0.2757,31153.0,31081.0,0.72696136]
[1609594741352,0.17822592,31154.0,31081.0,0.72696136]
[1609594741552,0.0952,31153.0,31082.0,0.00041366]
[1609594741952,0.0952,31153.0,31152.0,0.18043158]
[1609594742153,0.0952,31153.0,31120.0,0.10796]
[1609594742554,0.2917,31152.0,31120.0,0.10796]
[1609594742953,0.2917,31152.0,31053.0,1.96800133]
[1609594743453,0.2917,31152.0,31054.0,0.03982992]
[1609594743856,0.18043158,31127.0,31119.0,0.18043158]
[1609594744154,0.30203158,31127.0,31119.0,0.18043158]
[1609594744354,0.30203158,31127.0,31054.0,0.13825]
[1609594744754,0.30203158,31127.0,31055.0,0.00041376]
[1609594744953,0.2792,31126.0,31055.0,0.00041376]
[1609594745855,0.2792,31126.0,31123.0,0.18043158]
[1609594746054,0.2792,31126.0,31100.0,0.15973]
[1609594747056,0.2792,31126.0,31072.0,1.95807775]
[1609594747355,1.0,31110.0,31072.0,1.95807775]
[1609594747556,1.0,31110.0,31073.0,0.00041381]
[1609594747557,1.11464,31110.0,31073.0,0.00041381]
[1609594747856,1.11464,31110.0,31095.0,0.18043158]
[1609594748356,1.11464,31110.0,31096.0,0.00041383]
[1609594748556,1.11464,31110.0,31095.0,0.04573158]
[1609594749258,0.11464,31110.0,31095.0,0.04573158]
[1609594749458,0.11464,31110.0,31073.0,0.15497]
[1609594749860,0.18043158,31099.0,31092.0,0.18043158]
[1609594750060,0.16398,31099.0,31092.0,0.18043158]